fUST/lending_fUST_20250825
["ID","MTS","AMOUNT","RATE_DAILY","PERIOD"]
[381273431,1756117841520,-480.0,0.00041095,30]
[381273432,1756117841529,-480.0,0.00041095,30]
[381273433,1756117841539,-938.66,0.00041095,30]
[381273434,1756117841549,-480.0,0.00041095,30]
[381273435,1756117841559,-480.0,0.00041095,30]
[381273436,1756117841569,-547.43938802,0.00041095,30]
[381273437,1756117841579,-791.13,0.00041095,30]
[381273438,1756117841589,-480.0,0.00041095,30]
[381273439,1756117841600,-480.0,0.00041095,30]
[381273440,1756117841610,-665.2,0.00041095,30]
[381273441,1756117841620,-480.0,0.00041095,30]
[381273442,1756117841630,-480.0,0.00041095,30]
[381273443,1756117841640,-1349.87,0.00041095,30]
[381273444,1756117841650,-480.0,0.00041095,30]
[381273445,1756117841660,-1012.46,0.00041095,30]
[381273446,1756117841669,-480.0,0.00041095,30]
[381273447,1756117841679,-480.0,0.00041095,30]
[381273448,1756117841689,-480.0,0.00041095,30]
[381273449,1756117841700,-1673.44,0.00041095,30]
[381273450,1756117841713,-779.5,0.00041095,30]
[381273451,1756117841723,-480.0,0.00041095,30]
[381273452,1756117841732,-1238.98,0.00041095,30]
[381273453,1756117841742,-926.11,0.00041095,30]
[381273454,1756117841751,-676.21,0.00041095,30]
[381273455,1756117841761,-624.04,0.00041095,30]
[381273456,1756117841770,-480.0,0.00041095,30]
[381273457,1756117841780,-546.29,0.00041095,30]
[381273458,1756117841789,-750.39,0.00041095,30]
[381273459,1756117841799,-612.14,0.00041095,30]
[381273460,1756117841808,-480.0,0.00041095,30]
[381273461,1756117841818,-688.32,0.00041095,14]
[381273462,1756117841827,-502.42,0.00041095,30]
[381273463,1756117841836,-1791.5,0.00041095,30]
[381273464,1756117841846,-443.07419613,0.00041095,30]
[381273465,1756117841856,-480.0,0.00041095,30]
[381273466,1756117841865,-480.0,0.00041095,30]
[381273467,1756117841876,-480.0,0.00041095,30]
[381273468,1756117841884,-480.0,0.00041095,30]
[381273469,1756117841893,-480.0,0.00041095,30]
[381273470,1756117841902,-480.0,0.00041095,30]
[381273471,1756117841912,-2301.79,0.00041095,30]
[381273472,1756117841923,-480.0,0.00041095,30]
[381273473,1756117841932,-1261.14,0.00041095,30]
[381273474,1756117841941,-480.0,0.00041095,30]
[381273475,1756117841951,-480.0,0.00041095,30]
[381273476,1756117841962,-874.6,0.00041095,30]
[381273477,1756117841971,-480.0,0.00041095,30]
[381273478,1756117841981,-958.97,0.00041095,30]
[381273479,1756117841990,-499.32,0.00041095,30]
[381273480,1756117842000,-480.0,0.00041095,30]
[381273481,1756117842009,-480.0,0.00041095,30]
[381273482,1756117842019,-722.47,0.00041095,30]
[381273483,1756117842028,-480.0,0.00041095,30]
[381273484,1756117842036,-480.0,0.00041095,30]
[381273485,1756117842045,-480.92170268,0.00041095,30]
[381273486,1756117842055,-480.0,0.00041095,30]
[381273487,1756117842064,-480.0,0.00041095,30]
[381273488,1756117842074,-480.0,0.00041095,30]
[381273489,1756117842084,-480.0,0.00041095,30]
[381273490,1756117842093,-1000.58,0.00041095,30]
[381273491,1756117842102,-480.0,0.00041095,30]
[381273492,1756117842111,-480.0,0.00041095,30]
[381273493,1756117842121,-480.0,0.00041095,30]
[381273494,1756117842131,-480.0,0.00041095,30]
[381273495,1756117842140,-1754.2,0.00041095,30]
[381273496,1756117842150,-480.0,0.00041095,30]
[381273497,1756117842159,-586.52,0.00041095,30]
[381273498,1756117842169,-809.03,0.00041095,30]
[381273499,1756117842178,-613.6,0.00041095,30]
[381273500,1756117842188,-480.0,0.00041095,30]
[381273501,1756117842197,-696.01,0.00041095,30]
[381273502,1756117842207,-480.0,0.00041095,30]
[381273503,1756117842217,-480.0,0.00041095,30]
[381273504,1756117842226,-480.0,0.00041095,30]
[381273505,1756117842236,-622.72,0.00041095,30]
[381273506,1756117842245,-622.72,0.00041095,30]
[381273507,1756117842255,-480.0,0.00041095,30]
[381273508,1756117842264,-1567.8,0.00041095,30]
[381273509,1756117842274,-480.0,0.00041095,30]
[381273510,1756117842283,-861.51,0.00041095,30]
[381273511,1756117842292,-996.27,0.00041095,30]
[381273512,1756117842302,-622.72,0.00041095,30]
[381273513,1756117842311,-1000.0,0.00041095,30]
[381273514,1756117842321,-622.72,0.00041095,30]
[381273515,1756117842330,-622.72,0.00041095,30]
[381273516,1756117842340,-462.00028486,0.00041095,30]
[381273517,1756117842350,-622.72,0.00041095,30]
[381273518,1756117842359,-622.72,0.00041095,30]
[381273519,1756117842376,-480.0,0.00041095,30]
[381273520,1756117842394,-622.72,0.00041095,30]
[381273521,1756117842404,-622.72,0.00041095,30]
[381273522,1756117842414,-622.72,0.00041095,30]
[381273523,1756117842423,-576.9,0.00041095,30]
[381273524,1756117842433,-622.72,0.00041095,30]
[381273525,1756117842443,-622.72,0.00041095,30]
[381273526,1756117842453,-480.0,0.00041095,30]
[381273527,1756117842466,-622.72,0.00041095,30]
[381273528,1756117842476,-495.67,0.00041095,30]
[381273529,1756117842486,-622.72,0.00041095,30]
[381273530,1756117842496,-622.72,0.00041095,30]
[381273531,1756117842506,-622.72,0.00041095,30]
[381273532,1756117842515,-4293.81,0.00041095,30]
[381273533,1756117842525,-622.72,0.00041095,30]
[381273534,1756117842535,-622.72,0.00041095,30]
[381273535,1756117842544,-622.72,0.00041095,30]
[381273536,1756117842554,-622.72,0.00041095,30]
[381273537,1756117842564,-622.72,0.00041095,30]
[381273538,1756117842573,-622.72,0.00041095,30]
[381273539,1756117842583,-622.72,0.00041095,30]
[381273540,1756117842593,-1349.57,0.00041095,30]
[381273541,1756117842602,-622.75453595,0.00041095,30]
[381273542,1756117842612,-3305.08,0.00041095,30]
[381273543,1756117842621,-480.0,0.00041095,30]
[381273544,1756117842631,-480.0,0.00041095,30]
[381273545,1756117842641,-587.41244561,0.00041095,30]
[381273546,1756117842650,-480.0,0.00041095,30]
[381273548,1756117842660,-728.75,0.00041095,30]
[381273550,1756117842669,-480.0,0.00041095,30]
[381273552,1756117842679,-162.38815105,0.00041095,30]
[381273554,1756117842689,-3140.6,0.00041095,30]
[381273555,1756117842698,-917.94,0.00041095,30]
[381273556,1756117842709,-480.0,0.00041095,30]
[381273557,1756117842719,-480.0,0.00041095,7]
[381273559,1756117842729,-480.0,0.00041095,30]
[381273561,1756117842738,-2874.81,0.00041095,30]
[381273563,1756117842748,-480.0,0.00041095,30]
[381273564,1756117842757,-1169.08,0.00041095,30]
[381273566,1756117842767,-480.0,0.00041095,2]
[381273567,1756117842777,-480.0,0.00041095,30]
[381273568,1756117842787,-510.03980501,0.00041095,30]
[381273569,1756117842796,-680.17,0.00041095,30]
[381273571,1756117842806,-480.0,0.00041095,30]
[381273573,1756117842815,-526.13520938,0.00041095,30]
[381273574,1756117842824,-480.0,0.00041095,30]
[381273575,1756117842834,-480.0,0.00041095,30]
[381273577,1756117842843,-480.0,0.00041095,30]
[381273579,1756117842852,-176.93448887,0.00041095,30]
[381273580,1756117842862,-526.86,0.00041095,30]
[381273581,1756117842872,-572.07,0.00041095,30]
[381273582,1756117842881,-480.67827306,0.00041095,30]
[381273583,1756117842891,-577.31597979,0.00041095,30]
[381273584,1756117842900,-480.0,0.00041095,30]
[381273585,1756117842910,-480.0,0.00041095,30]
[381273586,1756117842919,-968.4,0.00041095,30]
[381273587,1756117842928,-976.32,0.00041095,30]
[381273588,1756117842938,-796.7,0.00041095,30]
[381273589,1756117842947,-1351.97,0.00041095,30]
[381273590,1756117842958,-480.0,0.00041095,30]
[381273591,1756117842968,-480.0,0.00041095,30]
[381273592,1756117842977,-2273.05,0.00041095,30]
[381273593,1756117842987,-223.81401171,0.00041095,30]
[381273594,1756117842997,-480.0,0.00041095,30]
[381273595,1756117843007,-986.08,0.00041095,30]
[381273596,1756117843017,-480.0,0.00041095,30]
[381273597,1756117843027,-480.0,0.00041095,30]
[381273598,1756117843037,-1825.18,0.00041095,30]
[381273599,1756117843047,-630.51,0.00041095,30]
[381273600,1756117843056,-757.75,0.00041095,30]
[381273601,1756117843067,-692.84,0.00041095,30]
[381273602,1756117843077,-480.0,0.00041095,30]
[381273603,1756117843087,-480.0,0.00041095,30]
[381273604,1756117843097,-599.56,0.00041095,30]
[381273605,1756117843108,-498.19,0.00041095,30]
[381273607,1756117843117,-480.0,0.00041095,30]
[381273609,1756117843127,-480.0,0.00041095,30]
[381273610,1756117843136,-480.0,0.00041095,30]
[381273611,1756117843145,-1799.73,0.00041095,30]
[381273612,1756117843154,-480.0,0.00041095,30]
[381273613,1756117843163,-480.0,0.00041095,30]
[381273614,1756117843173,-1254.99,0.00041095,30]
[381273615,1756117843182,-480.0,0.00041095,30]
[381273616,1756117843191,-480.0,0.00041095,30]
[381273617,1756117843200,-2069.49,0.00041095,30]
[381273618,1756117843213,-480.0,0.00041095,30]
[381273619,1756117843222,-480.0,0.00041095,30]
[381273620,1756117843232,-1636.5,0.00041095,30]
[381273621,1756117843241,-788.22,0.00041095,30]
[381273622,1756117843251,-480.0,0.00041095,30]
[381273623,1756117843261,-480.0,0.00041095,30]
[381273624,1756117843270,-480.0,0.00041095,30]
[381273625,1756117843451,-480.0,0.00041095,30]
[381273626,1756117843464,-1300.87,0.00041095,30]
[381273627,1756117843474,-480.0,0.00041095,30]
[381273628,1756117843485,-1330.74,0.00041095,30]
[381273629,1756117843495,-1132.11,0.00041095,30]
[381273630,1756117843505,-480.0,0.00041095,30]
[381273631,1756117843515,-1199.24,0.00041095,120]
[381273632,1756117843525,-1070.09,0.00041095,30]
[381273633,1756117843534,-653.88,0.00041095,30]
[381273634,1756117843545,-480.0,0.00041095,30]
[381273635,1756117843554,-1056.73,0.00041095,30]
[381273636,1756117843563,-480.0,0.00041095,30]
[381273637,1756117843573,-480.0,0.00041095,30]
[381273638,1756117843582,-480.0,0.00041095,30]
[381273639,1756117843591,-402.56012119,0.00041095,30]
[381273640,1756117843601,-480.0,0.00041095,30]
[381273641,1756117843610,-1045.63,0.00041095,30]
[381273642,1756117843619,-480.0,0.00041095,30]
[381273643,1756117843628,-808.47,0.00041095,30]
[381273645,1756117843638,-480.0,0.00041095,30]
[381273647,1756117843647,-480.0,0.00041095,30]
[381273648,1756117843657,-1130.37,0.00041095,30]
[381273649,1756117843666,-480.0,0.00041095,30]
[381273650,1756117843676,-569.35,0.00041095,30]
[381273651,1756117843686,-480.0,0.00041095,30]
[381273652,1756117843695,-614.96,0.00041095,30]
[381273653,1756117843705,-631.79,0.00041095,30]
[381273654,1756117843716,-1092.83,0.00041095,30]
[381273655,1756117843726,-651.46,0.00041095,30]
[381273656,1756117843735,-1790.75,0.00041095,30]
[381273657,1756117843745,-480.0,0.00041095,30]
[381273658,1756117843755,-480.0,0.00041095,7]
[381273659,1756117843765,-480.0,0.00041095,30]
[381273660,1756117843774,-480.0,0.00041095,30]
[381273661,1756117843784,-480.0,0.00041095,30]
[381273662,1756117843793,-480.0,0.00041095,30]
[381273663,1756117843803,-557.41,0.00041095,30]
[381273664,1756117843812,-669.15,0.00041095,30]
[381273665,1756117843822,-480.0,0.00041095,30]
[381273666,1756117843832,-500.0,0.00041095,30]
[381273667,1756117843843,-1353.57,0.00041095,30]
[381273668,1756117843852,-500.0,0.00041095,30]
[381273669,1756117843862,-500.0,0.00041095,30]
[381273670,1756117843872,-500.0,0.00041095,30]
[381273671,1756117843881,-3746.72,0.00041095,30]
[381273672,1756117843891,-480.0,0.00041095,30]
[381273674,1756117843901,-431.29291786,0.00041095,30]
[381273675,1756117843911,-1817.87,0.00041095,30]
[381273676,1756117843920,-480.0,0.00041095,30]
[381273677,1756117843929,-480.0,0.00041095,30]
[381273678,1756117843938,-2117.89,0.00041095,30]
[381273679,1756117843947,-480.0,0.00041095,30]
[381273680,1756117843957,-480.0,0.00041095,30]
[381273681,1756117843966,-697.21,0.00041095,30]
[381273682,1756117843975,-480.0,0.00041095,30]
[381273683,1756117843985,-480.0,0.00041095,30]
[381273684,1756117843995,-480.0,0.00041095,30]
[381273685,1756117844005,-732.1,0.00041095,30]
[381273686,1756117844014,-1258.78,0.00041095,30]
[381273687,1756117844023,-480.0,0.00041095,30]
[381273688,1756117844033,-480.0,0.00041095,30]
[381273689,1756117844042,-480.0,0.00041095,30]
[381273690,1756117844052,-1982.73,0.00041095,30]
[381273691,1756117844061,-480.0,0.00041095,30]
[381273692,1756117844070,-480.0,0.00041095,30]
[381273693,1756117844080,-480.0,0.00041095,30]
[381273694,1756117844089,-654.73,0.00041095,30]
[381273695,1756117844098,-683.57,0.00041095,30]
[381273696,1756117844107,-480.27846722,0.00041095,30]
[381273697,1756117844116,-480.0,0.00041095,30]
[381273698,1756117844126,-480.0,0.00041095,30]
[381273699,1756117844135,-480.0,0.00041095,30]
[381273700,1756117844145,-2336.61,0.00041095,30]
[381273701,1756117844155,-480.0,0.00041095,30]
[381273702,1756117844165,-480.0,0.00041095,30]
[381273703,1756117844174,-480.0,0.00041095,30]
[381273704,1756117844183,-480.0,0.00041095,30]
[381273705,1756117844193,-480.0,0.00041095,30]
[381273706,1756117844202,-480.0,0.00041095,30]
[381273707,1756117844213,-480.0,0.00041095,30]
[381273708,1756117844222,-531.63,0.00041095,30]
[381273709,1756117844231,-480.0,0.00041095,30]
[381273710,1756117844241,-711.39,0.00041095,30]
[381273711,1756117844251,-480.0,0.00041095,30]
[381273712,1756117844260,-1356.41,0.00041095,30]
[381273713,1756117844270,-1817.59,0.00041095,30]
[381273714,1756117844279,-480.0,0.00041095,30]
[381273715,1756117844288,-480.0,0.00041095,30]
[381273716,1756117844298,-4317.5,0.00041095,30]
[381273717,1756117844307,-358.8920907,0.00041095,30]
[381273718,1756117844316,-509.16,0.00041095,30]
[381273719,1756117844325,-480.0,0.00041095,30]
[381273720,1756117844335,-1185.69,0.00041095,30]
[381273721,1756117844344,-480.0,0.00041095,30]
[381273722,1756117844354,-480.0,0.00041095,30]
[381273723,1756117844363,-688.96,0.00041095,30]
[381273724,1756117844377,-480.0,0.00041095,30]
[381273725,1756117844387,-480.0,0.00041095,30]
[381273726,1756117844396,-2298.35,0.00041095,30]
[381273727,1756117844405,-480.0,0.00041095,30]
[381273729,1756117844416,-480.0,0.00041095,30]
[381273731,1756117844425,-528.54,0.00041095,30]
[381273732,1756117844434,-480.0,0.00041095,30]
[381273733,1756117844443,-19614.7,0.00041095,30]
[381273734,1756117844453,-490.9,0.00041095,30]
[381273735,1756117844465,-1405.89,0.00041095,30]
[381273736,1756117844474,-480.0,0.00041095,30]
[381273737,1756117844483,-480.0,0.00041095,30]
[381273738,1756117844492,-500.0,0.00041095,30]
[381273739,1756117844501,-500.0,0.00041095,30]
[381273740,1756117844511,-500.0,0.00041095,30]
[381273741,1756117844520,-500.0,0.00041095,30]
[381273742,1756117844529,-480.0,0.00041095,30]
[381273743,1756117844539,-500.0,0.00041095,30]
[381273744,1756117844548,-500.0,0.00041095,30]
[381273745,1756117844557,-500.0,0.00041095,30]
[381273746,1756117844566,-480.0,0.00041095,30]
[381273747,1756117844576,-500.0,0.00041095,30]
[381273748,1756117844596,-480.0,0.00041095,30]
[381273749,1756117844607,-500.0,0.00041095,30]
[381273750,1756117844617,-500.0,0.00041095,30]
[381273751,1756117844628,-480.0,0.00041095,30]
[381273752,1756117844638,-500.0,0.00041095,30]
[381273753,1756117844648,-500.0,0.00041095,30]
[381273754,1756117844659,-457.06,0.00041095,30]
[381273755,1756117844669,-1221.05,0.00041095,30]
[381273756,1756117844679,-480.0,0.00041095,30]
[381273757,1756117844690,-1446.12,0.00041095,30]
[381273758,1756117844700,-480.0,0.00041095,30]
[381273759,1756117844712,-480.0,0.00041095,30]
[381273760,1756117844721,-480.0,0.00041095,30]
[381273761,1756117844731,-631.12,0.00041095,30]
[381273762,1756117844741,-480.0,0.00041095,30]
[381273763,1756117844751,-480.0,0.00041095,30]
[381273764,1756117844761,-480.0,0.00041095,30]
[381273765,1756117844771,-1730.68,0.00041095,30]
[381273766,1756117844781,-1853.9,0.00041095,30]
[381273767,1756117844791,-647.98,0.00041095,30]
[381273768,1756117844801,-480.0,0.00041095,30]
[381273769,1756117844811,-1637.12,0.00041095,30]
[381273770,1756117844820,-480.0,0.00041095,30]
[381273771,1756117844830,-1720.85,0.00041095,30]
[381273772,1756117844840,-968.72,0.00041095,30]
[381273773,1756117844850,-480.0,0.00041095,30]
[381273774,1756117844861,-480.0,0.00041095,30]
[381273775,1756117844870,-480.0,0.00041095,30]
[381273776,1756117844880,-550.49,0.00041095,30]
[381273777,1756117844890,-480.0,0.00041095,30]
[381273778,1756117844901,-480.0,0.00041095,30]
[381273779,1756117844913,-480.0,0.00041095,30]
[381273780,1756117844923,-480.0,0.00041095,30]
[381273781,1756117844932,-620.02,0.00041095,30]
[381273782,1756117844944,-5586.32,0.00041095,30]
[381273783,1756117844954,-505.07,0.00041095,30]
[381273784,1756117844966,-480.0,0.00041095,30]
[381273785,1756117844976,-480.0,0.00041095,30]
[381273786,1756117844986,-1364.71,0.00041095,30]
[381273787,1756117844997,-480.0,0.00041095,30]
[381273788,1756117845007,-480.0,0.00041095,30]
[381273789,1756117845018,-414.06298926,0.00041095,30]
[381273790,1756117845032,-480.0,0.00041095,30]
[381273791,1756117845051,-1882.06,0.00041095,30]
[381273792,1756117845070,-480.0,0.00041095,30]
[381273793,1756117845080,-1233.38,0.00041095,30]
[381273794,1756117845092,-739.6,0.00041095,30]
[381273795,1756117845102,-4932.45,0.00041095,30]
[381273796,1756117845112,-480.0,0.00041095,30]
[381273797,1756117845122,-1304.07,0.00041095,30]
[381273798,1756117845133,-863.05,0.00041095,30]
[381273799,1756117845143,-480.0,0.00041095,30]
[381273800,1756117845152,-480.0,0.00041095,30]
[381273801,1756117845162,-1403.13,0.00041095,30]
[381273802,1756117845172,-480.0,0.00041095,30]
[381273803,1756117845183,-480.0,0.00041095,30]
[381273804,1756117845193,-480.0,0.00041095,30]
[381273805,1756117845202,-480.0,0.00041095,30]
[381273806,1756117845213,-480.0,0.00041095,30]
[381273808,1756117845223,-480.0,0.00041095,30]
[381273810,1756117845233,-997.45,0.00041095,30]
[381273812,1756117845246,-536.76,0.00041095,30]
[381273813,1756117845260,-480.0,0.00041095,30]
[381273815,1756117845270,-3188.54,0.00041095,30]
[381273816,1756117845280,-589.287844,0.00041095,30]
[381273817,1756117845290,-480.0,0.00041095,30]
[381273818,1756117845299,-480.0,0.00041095,30]
[381273819,1756117845309,-5909.94,0.00041095,30]
[381273820,1756117845318,-903.95,0.00041095,30]
[381273821,1756117845328,-572.09,0.00041095,30]
[381273823,1756117845338,-480.0,0.00041095,30]
[381273824,1756117845347,-480.0,0.00041095,30]
[381273825,1756117845358,-480.0,0.00041095,30]
[381273826,1756117845370,-480.0,0.00041095,30]
[381273827,1756117845379,-1335.79,0.00041095,30]
[381273828,1756117845388,-480.0,0.00041095,30]
[381273829,1756117845398,-480.0,0.00041095,30]
[381273830,1756117845408,-480.0,0.00041095,30]
[381273831,1756117845418,-480.0,0.00041095,30]
[381273832,1756117845428,-480.0,0.00041095,30]
[381273833,1756117845438,-784.62,0.00041095,30]
[381273834,1756117845449,-480.0,0.00041095,30]
[381273835,1756117845459,-1608.6,0.00041095,30]
[381273836,1756117845470,-480.0,0.00041095,30]
[381273837,1756117845480,-480.0,0.00041095,30]
[381273838,1756117845490,-1022.88,0.00041095,30]
[381273839,1756117845499,-480.0,0.00041095,30]
[381273840,1756117845509,-480.0,0.00041095,30]
[381273841,1756117845518,-480.0,0.00041095,30]
[381273842,1756117845528,-663.97,0.00041095,30]
[381273843,1756117845538,-480.0,0.00041095,30]
[381273844,1756117845548,-480.0,0.00041095,30]
[381273845,1756117845558,-480.0,0.00041095,30]
[381273846,1756117845568,-815.47,0.00041095,30]
[381273847,1756117845578,-480.0,0.00041095,30]
[381273848,1756117845588,-480.0,0.00041095,30]
[381273849,1756117845597,-480.0,0.00041095,30]
[381273850,1756117845608,-2318.7,0.00041095,30]
[381273851,1756117845617,-2645.89,0.00041095,30]
[381273852,1756117845627,-3213.62,0.00041095,30]
[381273853,1756117845637,-480.0,0.00041095,30]
[381273854,1756117845646,-1589.2,0.00041095,30]
[381273855,1756117845656,-1286.07,0.00041095,30]
[381273856,1756117845667,-2204.55,0.00041095,30]
[381273857,1756117845677,-4080.09,0.00041095,30]
[381273858,1756117845687,-613.19,0.00041095,30]
[381273859,1756117845697,-480.0,0.00041095,30]
[381273860,1756117845707,-480.0,0.00041095,30]
[381273861,1756117845717,-480.0,0.00041095,30]
[381273862,1756117845727,-640.67,0.00041095,30]
[381273863,1756117845737,-480.0,0.00041095,30]
[381273864,1756117845747,-480.0,0.00041095,30]
[381273865,1756117845757,-5997.75,0.00041095,30]
[381273866,1756117845767,-480.0,0.00041095,30]
[381273867,1756117845776,-728.2,0.00041095,30]
[381273868,1756117845785,-480.0,0.00041095,30]
[381273869,1756117845795,-527.05,0.00041095,30]
[381273870,1756117845805,-480.0,0.00041095,30]
[381273871,1756117845815,-1408.09,0.00041095,30]
[381273872,1756117845825,-480.0,0.00041095,30]
[381273873,1756117845835,-584.13,0.00041095,30]
[381273874,1756117845845,-862.48,0.00041095,30]
[381273875,1756117845855,-820.84,0.00041095,30]
[381273876,1756117845865,-480.0,0.00041095,30]
[381273877,1756117845876,-3497.98,0.00041095,30]
[381273878,1756117845886,-480.0,0.00041095,30]
[381273879,1756117845896,-3476.32,0.00041095,30]
[381273880,1756117845907,-3079.65,0.00041095,30]
[381273881,1756117845917,-480.0,0.00041095,30]
[381273882,1756117845928,-5609.95,0.00041095,30]
[381273883,1756117845938,-487.95,0.00041095,30]
[381273884,1756117845949,-1991.8,0.00041095,30]
[381273885,1756117845961,-480.0,0.00041095,30]
[381273886,1756117845972,-480.0,0.00041095,30]
[381273887,1756117845986,-480.0,0.00041095,30]
[381273888,1756117845996,-1315.65,0.00041095,30]
[381273889,1756117846006,-480.0,0.00041095,30]
[381273890,1756117846016,-5084.37,0.00041095,30]
[381273891,1756117846026,-480.0,0.00041095,30]
[381273892,1756117846035,-480.0,0.00041095,30]
[381273893,1756117846045,-480.0,0.00041095,30]
[381273894,1756117846055,-1629.78,0.00041095,30]
[381273896,1756117846065,-492.09,0.00041095,30]
[381273898,1756117846075,-564.67858254,0.00041095,30]
[381273900,1756117846084,-1665.78,0.00041095,30]
[381273902,1756117846094,-1665.78,0.00041095,30]
[381273904,1756117846103,-1665.78,0.00041095,30]
[381273907,1756117846113,-1665.78,0.00041095,30]
[381273910,1756117846123,-1665.78,0.00041095,30]
[381273914,1756117846133,-1665.78,0.00041095,30]
[381273917,1756117846144,-1665.78,0.00041095,30]
[381273920,1756117846153,-1665.78,0.00041095,30]
[381273923,1756117846164,-480.0,0.00041095,30]
[381273926,1756117846175,-1665.78,0.00041095,30]
[381273929,1756117846185,-1665.78,0.00041095,30]
[381273932,1756117846195,-1665.78,0.00041095,30]
[381273935,1756117846205,-1665.78,0.00041095,30]
[381273937,1756117846215,-1665.78,0.00041095,30]
[381273943,1756117846417,-1665.78,0.00041095,30]
[381273944,1756117846427,-1665.78,0.00041095,30]
[381273945,1756117846438,-1665.78,0.00041095,30]
[381273946,1756117846448,-1665.78,0.00041095,30]
[381273947,1756117846459,-1665.78,0.00041095,30]
[381273948,1756117846471,-480.0,0.00041095,30]
[381273949,1756117846481,-1665.78,0.00041095,30]
[381273950,1756117846492,-1665.78,0.00041095,30]
[381273951,1756117846501,-782.03,0.00041095,30]
[381273952,1756117846511,-1665.78,0.00041095,30]
[381273953,1756117846522,-1665.78,0.00041095,30]
[381273954,1756117846533,-1665.78,0.00041095,30]
[381273955,1756117846543,-480.0,0.00041095,30]
[381273956,1756117846553,-1665.96,0.00041095,30]
[381273957,1756117846562,-2414.52,0.00041095,30]
[381273958,1756117846572,-480.0,0.00041095,30]
[381273959,1756117846582,-480.0,0.00041095,30]
[381273960,1756117846596,-480.0,0.00041095,30]
[381273961,1756117846606,-480.0,0.00041095,30]
[381273962,1756117846617,-480.0,0.00041095,30]
[381273963,1756117846628,-14482.34,0.00041095,30]
[381273965,1756117846638,-480.0,0.00041095,30]
[381273966,1756117846648,-480.0,0.00041095,30]
[381273967,1756117846659,-480.0,0.00041095,30]
[381273968,1756117846669,-597.75,0.00041095,30]
[381273969,1756117846680,-827.22,0.00041095,30]
[381273970,1756117846691,-480.0,0.00041095,30]
[381273971,1756117846701,-480.0,0.00041095,30]
[381273972,1756117846712,-1066.17,0.00041095,30]
[381273973,1756117846722,-1864.32,0.00041095,30]
[381273974,1756117846733,-480.0,0.00041095,30]
[381273975,1756117846743,-480.0,0.00041095,30]
[381273976,1756117846754,-517.61,0.00041095,30]
[381273977,1756117846765,-1045.84,0.00041095,30]
[381273978,1756117846776,-1435.66,0.00041095,30]
[381273979,1756117846787,-480.0,0.00041095,30]
[381273980,1756117846797,-2186.25,0.00041095,30]
[381273981,1756117846806,-673.78,0.00041095,30]
[381273982,1756117846817,-920.94,0.00041095,30]
[381273983,1756117846826,-480.0,0.00041095,30]
[381273984,1756117846836,-480.0,0.00041095,30]
[381273985,1756117846846,-480.0,0.00041095,30]
[381273986,1756117846856,-668.63,0.00041095,30]
[381273987,1756117846866,-480.0,0.00041095,30]